bitfinex/quotes_ETHUSD_20240729
["timestamp","ask_amount","ask_price","bid_price","bid_amount"]
[1722267749276,2.4568,3314.8,3313.7,0.301785]
[1722267749901,2.4568,3314.8,3313.7,3.319545]
[1722267750228,2.4568,3314.8,3313.7,0.301785]
[1722267750530,3.18398,3314.8,3313.7,0.301785]
[1722267750738,3.18398,3314.8,3313.5,3.0179]
[1722267751068,3.0,3314.7,3313.5,3.0179]
[1722267751610,3.0,3314.7,3313.7,3.01774]
[1722267751811,3.0,3314.7,3313.8,3.01762]
[1722267752013,2.4568,3314.8,3313.9,0.603536]
[1722267752340,2.4568,3314.8,3313.9,3.621076]
[1722267752505,2.4568,3314.8,3314.0,3.01744]
[1722267752697,1.815,3315.2,3314.1,3.01736]
[1722267752914,2.2959,3315.3,3314.4,3.01713]
[1722267753238,2.3824,3316.0,3314.7,3.01685]
[1722267753402,1.815,3315.9,3314.6,3.01695]
[1722267753937,1.815,3315.9,3314.6,3.01689]
[1722267754241,2.3824,3316.0,3314.8,3.01669]
[1722267754450,2.3824,3316.0,3314.9,0.30770283]
[1722267754722,2.3824,3316.0,3314.9,3.32432283]
[1722267755028,2.3824,3316.0,3314.9,0.30770283]
[1722267755490,2.3824,3316.0,3314.7,3.01683]
[1722267755833,2.3824,3316.0,3314.6,3.01688]
[1722267755989,2.3824,3316.0,3314.7,3.01679]
[1722267756190,2.3824,3316.0,3314.9,3.01666]
[1722267757539,2.3824,3316.0,3315.1,3.01647]
[1722267757748,2.3824,3316.0,3315.1,3.619783]
[1722267757904,3.0,3316.2,3315.1,3.619783]
[1722267758106,4.815,3316.3,3315.1,3.619783]
[1722267758316,4.815,3316.3,3315.1,0.603313]
[1722267758617,0.7096,3316.2,3315.1,0.603313]
[1722267758842,3.7096,3316.2,3315.1,0.603313]
[1722267759353,3.7096,3316.2,3314.9,3.01667]
[1722267759539,3.7096,3316.2,3315.0,3.01655]
[1722267760013,3.0,3316.2,3314.5,1.63477238]
[1722267760213,2.281,3316.4,3315.0,3.01657]
[1722267760412,2.281,3316.4,3315.2,3.01635]
[1722267760772,2.281,3316.4,3315.2,3.01633]
[1722267761071,2.281,3316.4,3315.4,3.01615]
[1722267761209,2.281,3316.4,3315.5,3.01611]
[1722267761653,2.4768,3316.8,3315.6,3.01599]
[1722267761809,2.4768,3316.8,3315.7,3.01593]
[1722267762012,0.26247984,3316.7,3315.8,3.01585]
[1722267762243,2.4768,3316.8,3315.8,3.01585]
[1722267762555,0.1479984,3316.9,3315.9,3.01576]
[1722267762912,0.1479984,3316.9,3316.0,3.01566]
[1722267764110,0.1479984,3316.9,3315.8,3.01585]
[1722267764315,0.1479984,3316.9,3315.9,3.01576]
[1722267764640,0.1479984,3316.9,3316.0,0.603161]
[1722267764817,0.1479984,3316.9,3315.9,6.03146]
[1722267765019,0.1479984,3316.9,3315.9,3.0157]
[1722267765219,0.1479984,3316.9,3316.1,3.01557]
[1722267765420,0.1479984,3316.9,3316.1,2.92593]
[1722267765650,0.1479984,3316.9,3315.9,6.03139]
[1722267765854,0.1479984,3316.9,3316.0,3.31724]
[1722267766363,0.1479984,3316.9,3316.0,0.30157]
[1722267766716,0.1479984,3316.9,3315.6,2.2818]
[1722267766922,0.1479984,3316.9,3315.5,3.01605]
[1722267767620,1.9629984,3316.9,3315.5,3.01605]
[1722267767814,1.9629984,3316.9,3315.3,3.317903]
[1722267768031,1.9629984,3316.9,3315.4,3.01621]
[1722267768221,0.79778184,3316.8,3315.5,0.6334113]
[1722267768447,3.0,3316.8,3315.9,3.01577]
[1722267768620,0.1479984,3316.9,3315.7,3.01588]
[1722267768820,0.1479984,3316.9,3315.8,3.07616113]
[1722267769049,0.1479984,3316.9,3315.9,3.01576]
[1722267769266,0.1479984,3316.9,3316.0,0.60918711]
[1722267769561,0.1479984,3316.9,3316.0,3.01561]
[1722267769768,0.1479984,3316.9,3316.1,3.01558]
[1722267770062,0.1479984,3316.9,3316.2,3.01549]
[1722267770220,0.1479984,3316.9,3316.3,3.01534]
[1722267770917,0.1479984,3316.9,3316.2,3.01548]
[1722267771119,0.1479984,3316.9,3316.1,0.06030514]
[1722267771120,0.1479984,3316.9,3316.1,3.01552]
[1722267771720,0.1479984,3316.9,3316.2,3.01547]
[1722267771917,0.1479984,3316.9,3316.1,3.01558]
[1722267772760,0.1479984,3316.9,3315.7,3.01593]
[1722267772969,0.1479984,3316.9,3315.5,3.6495113]
[1722267772970,0.1479984,3316.9,3315.5,0.6334113]
[1722267773168,0.1479984,3316.9,3315.4,2.2689]
[1722267773463,4.9629984,3316.9,3315.4,5.28505]
[1722267773630,3.1479984,3316.9,3315.7,3.01594]
[1722267773835,3.0,3316.8,3315.8,3.01581]
[1722267774046,3.0,3316.8,3315.9,3.01576]
[1722267774358,0.1479984,3316.9,3315.7,3.32354582]
[1722267774359,0.1479984,3316.9,3315.7,0.30762582]
[1722267774566,0.1479984,3316.9,3315.3,3.01625]
[1722267774874,0.1479984,3316.9,3315.5,3.01611]
[1722267775376,0.1479984,3316.9,3315.3,3.01624]
[1722267775663,0.1479984,3316.9,3315.1,3.01643]
[1722267775664,3.015,3316.8,3315.1,3.01643]
[1722267775860,3.79929084,3316.7,3315.2,3.543643]
[1722267776425,3.79929084,3316.7,3315.2,0.527253]
[1722267776627,5.47288,3316.6,3315.1,3.0]
[1722267776863,2.4577,3316.6,3315.1,3.0]
[1722267777159,2.4577,3316.6,3315.1,3.01649]
[1722267777160,5.4577,3316.6,3315.1,3.01649]
[1722267777469,5.4577,3316.6,3315.2,3.01634]
[1722267777674,3.0,3316.6,3315.6,3.01603]
[1722267777960,0.1479984,3316.9,3315.4,3.01616]
[1722267777961,3.0,3316.8,3315.4,3.01616]
[1722267778161,3.0,3316.8,3315.0,5.2561]
[1722267778162,3.1479984,3316.9,3315.7,3.01595]
[1722267778375,0.1479984,3316.9,3315.8,0.301595]
[1722267779126,0.1479984,3316.9,3315.8,3.317455]
[1722267779328,0.1479984,3316.9,3315.2,1.5]
[1722267779653,5.47279,3316.7,3315.1,3.01644]
[1722267779852,3.0,3316.6,3315.0,2.2561]
[1722267780039,3.78227,3316.6,3315.5,3.01607]
[1722267780221,3.0,3316.5,3315.4,3.01617]
[1722267780427,3.0,3316.5,3315.2,1.5]
[1722267780664,2.4577,3316.7,3315.2,1.5]
[1722267780665,2.4577,3316.7,3315.6,3.01599]
[1722267780873,2.4577,3316.7,3315.4,3.01615]
[1722267781189,2.4577,3316.7,3315.6,3.01604]
[1722267781571,2.4577,3316.7,3315.7,3.01593]
[1722267781875,2.4577,3316.7,3315.6,3.01604]
[1722267782293,2.4577,3316.7,3315.4,3.01618]
[1722267782423,2.4577,3316.7,3315.2,1.5]
[1722267782775,2.4577,3316.7,3315.5,3.01611]
[1722267782976,2.4577,3316.7,3315.5,3.01608]
[1722267783332,2.4577,3316.7,3315.3,3.01627]
[1722267783528,3.01519,3316.6,3315.1,0.22561]
[1722267783734,3.0,3316.5,3315.1,0.22561]
[1722267783973,6.01522,3316.5,3315.1,0.22561]
[1722267784172,6.01522,3316.5,3314.8,1.5]
[1722267784173,3.0,3316.5,3314.8,1.5]
[1722267784681,3.0,3316.5,3315.0,3.01653]
[1722267784830,3.0,3316.5,3315.1,3.01649]
[1722267785032,3.0,3316.5,3314.8,4.51672]
[1722267785287,3.0,3316.5,3315.0,3.01654]
[1722267785575,3.0,3316.6,3315.1,3.318104]
[1722267785729,3.0,3316.6,3315.2,3.01635]
[1722267786254,3.0,3316.6,3315.4,3.01617]
[1722267786457,3.0,3316.6,3315.2,3.01632]
[1722267786673,3.0,3316.6,3315.4,3.01621]
[1722267786977,0.72727,3316.5,3315.4,3.619463]
[1722267787479,0.72727,3316.5,3315.4,0.603253]
[1722267787980,0.72727,3316.5,3315.4,3.619423]
[1722267788181,0.72727,3316.5,3315.2,3.01635]
[1722267788584,0.72727,3316.5,3315.2,6.03268]
[1722267788785,0.72727,3316.5,3315.2,3.01633]
[1722267789162,0.72727,3316.5,3315.5,3.01613]
[1722267789686,0.72727,3316.5,3315.3,3.0163]
[1722267789890,0.372727,3316.4,3315.3,3.3480354]
[1722267790048,3.0,3316.6,3315.5,3.01613]
[1722267790243,5.4577,3316.7,3315.5,3.01613]
[1722267790444,2.4577,3316.7,3315.5,3.01613]
[1722267790657,2.4577,3316.7,3315.6,3.01604]
[1722267791597,2.4577,3316.7,3315.6,3.01598]
[1722267791752,3.01826984,3316.7,3315.6,0.60924655]
[1722267792186,3.0,3316.6,3315.6,0.60924655]
[1722267792480,3.0,3316.6,3315.3,3.01624]
[1722267792691,3.0,3316.6,3315.4,3.01622]
[1722267792982,3.0,3316.6,3315.1,3.01649]
[1722267793193,6.01513,3316.6,3315.1,3.01649]
[1722267793373,1.37933998,3316.5,3315.2,0.301649]
[1722267793547,1.37933998,3316.5,3315.0,3.01652]
[1722267793749,1.37933998,3316.5,3315.0,3.01656]
[1722267794163,1.37933998,3316.5,3315.1,3.01648]
[1722267794359,1.37933998,3316.5,3315.2,3.01639]
[1722267794544,1.37933998,3316.5,3315.2,0.603295]
[1722267794545,0.619434,3316.4,3315.2,0.603295]
[1722267794993,0.619434,3316.4,3314.9,4.59090678]
[1722267795195,3.619434,3316.4,3315.0,3.01652]
[1722267795394,0.619434,3316.4,3315.0,3.01652]
[1722267796228,3.0,3316.6,3315.5,3.01608]
[1722267796505,3.0,3316.6,3315.6,0.06022259]
[1722267796797,2.4577,3316.7,3315.6,3.07624259]
[1722267797002,2.4577,3316.7,3315.6,0.06022259]
[1722267797199,2.4577,3316.7,3315.9,3.01576]
[1722267797402,2.3795,3317.1,3316.1,3.01558]
[1722267797702,2.3795,3317.1,3316.0,0.301576]
[1722267798104,2.3795,3317.1,3315.8,3.01585]
[1722267798260,3.0,3317.0,3315.8,3.01585]
[1722267798461,3.0,3317.0,3315.6,3.01598]
[1722267798662,3.0,3317.0,3315.7,1.04938588]
[1722267798882,3.0,3317.0,3315.6,3.01598]
[1722267799089,3.0,3317.0,3315.5,3.01613]
[1722267799403,0.31479984,3316.8,3315.5,3.68245974]
[1722267799608,0.31479984,3316.8,3315.5,0.66632974]
[1722267800172,0.31479984,3316.8,3315.3,3.6472374]
[1722267800399,0.31479984,3316.8,3315.4,2.6236704]
[1722267800599,0.31479984,3316.8,3315.4,3.01622]
[1722267800800,0.31479984,3316.8,3315.5,1.04945961]
[1722267800974,2.4225,3316.7,3315.3,3.64900358]
[1722267801162,0.45522998,3316.6,3315.4,3.29026509]
[1722267801363,3.45522998,3316.6,3315.1,2.97179358]
[1722267801603,3.45522998,3316.6,3315.2,5.64010598]
[1722267801900,3.45522998,3316.6,3315.3,1.04951039]
[1722267802102,3.45522998,3316.6,3315.4,5.63989959]
[1722267802401,3.45522998,3316.6,3315.5,3.18762589]
[1722267802623,3.45522998,3316.6,3315.6,1.04948985]
[1722267802788,3.45522998,3316.6,3315.5,3.58009996]
[1722267802988,3.45522998,3316.6,3315.6,2.6235362]
[1722267803221,3.0,3316.6,3315.8,3.01584]
[1722267803419,5.4225,3316.7,3315.8,6.03163]
[1722267803735,0.1479984,3316.9,3316.0,3.01566]
[1722267804275,0.1479984,3316.9,3315.8,3.01581]
[1722267804276,0.1479984,3316.9,3315.8,3.0158]
[1722267804477,0.1479984,3316.9,3315.9,1.04934947]
[1722267804705,0.31479984,3316.8,3315.8,3.01579]
[1722267804889,0.1479984,3316.9,3315.8,3.01579]
[1722267804890,0.1479984,3316.9,3316.1,3.01553]
[1722267805110,0.1479984,3316.9,3316.2,2.62315937]
[1722267805302,0.1479984,3316.9,3316.1,0.06030417]
[1722267805520,0.1479984,3316.9,3316.2,2.62311815]
[1722267805702,0.1479984,3316.9,3316.0,0.63293547]
[1722267805907,0.1479984,3316.9,3316.1,3.04831942]
[1722267806089,0.1479984,3316.9,3316.2,1.04926072]
[1722267806294,0.1479984,3316.9,3316.2,3.01543]
[1722267806495,0.1479984,3316.9,3316.3,4.06457673]
[1722267806693,0.1479984,3316.9,3316.3,3.01534]
[1722267806928,0.1479984,3316.9,3316.4,0.301534]
[1722267807094,0.1479984,3316.9,3316.5,3.01519]
[1722267807292,0.1479984,3316.9,3316.4,0.301534]
[1722267807603,0.1479984,3316.9,3316.4,3.316794]
[1722267807803,0.1479984,3316.9,3316.5,3.01522]
[1722267807997,0.1479984,3316.9,3316.6,0.3316754]
[1722267808195,0.1479984,3316.9,3316.4,0.301534]
[1722267808415,0.1479984,3316.9,3316.3,3.01539]
[1722267808695,0.1479984,3316.9,3316.1,7.02888867]
[1722267808913,0.1479984,3316.9,3316.1,0.99785867]
[1722267809127,0.1479984,3316.9,3316.1,0.63299512]
[1722267809435,0.1479984,3316.9,3316.2,3.01543]
[1722267810055,0.1479984,3316.9,3316.0,0.63284935]
[1722267810260,0.1479984,3316.9,3316.6,3.01513]
[1722267810414,0.1479984,3316.9,3316.7,0.603027]
[1722267810614,0.1479984,3316.9,3316.7,3.618057]
[1722267811290,0.1479984,3316.9,3316.8,3.01495]
[1722267811553,0.1479984,3316.9,3316.8,4.06397453]
[1722267811755,0.1479984,3316.9,3316.8,5.69778387]
[1722267811929,0.1479984,3316.9,3316.8,6.92499289]
[1722267812415,0.1479984,3316.9,3316.8,4.30245274]
[1722267812619,0.1479984,3316.9,3316.8,3.07524372]
[1722267812828,0.1479984,3316.9,3316.8,4.12426083]
[1722267813131,0.1479984,3316.9,3316.8,8.71263136]
[1722267813342,7.31,3317.5,3316.8,3.31558071]
[1722267813549,7.31,3317.5,3317.2,3.01452]
[1722267813746,7.31,3317.5,3317.3,0.301452]
[1722267814163,7.31,3317.5,3317.3,3.315892]
[1722267814353,7.31,3317.5,3317.4,3.0144]
[1722267814532,2.464,3318.7,3317.3,0.301452]
[1722267814733,2.464,3318.7,3317.0,3.01472]
[1722267814958,2.464,3318.7,3317.1,3.99385505]
[1722267815169,2.464,3318.7,3317.6,3.01421]
[1722267815371,2.464,3318.7,3317.4,2.3207]
[1722267815540,2.464,3318.7,3317.2,3.01454]
[1722267815874,1.278719,3318.6,3317.3,0.595954]
[1722267816219,3.0,3318.6,3317.3,0.595954]
[1722267816460,3.01346,3318.5,3317.3,0.595954]
[1722267816650,6.0135,3318.4,3316.9,3.01484]
[1722267816978,3.0,3318.3,3316.9,3.01484]
[1722267817340,6.01341,3318.5,3316.9,3.01482]
[1722267817570,6.01341,3318.5,3316.7,4.18087635]
[1722267817571,5.47786,3318.0,3316.7,0.603027]
[1722267817889,5.47786,3318.0,3316.4,3.01531]
[1722267817890,3.0,3317.9,3316.4,3.01531]
[1722267818046,3.0,3317.9,3316.5,3.01522]
[1722267818383,3.0,3317.9,3316.7,3.01497]
[1722267818682,2.464,3318.0,3316.3,2.945]
[1722267818683,2.464,3318.0,3316.8,0.301497]
[1722267819475,2.464,3318.0,3316.8,3.316367]
[1722267820282,2.464,3318.0,3316.8,6.331247]
[1722267820489,2.464,3318.0,3316.9,0.06028921]
[1722267820692,2.464,3318.0,3317.0,3.01477]
[1722267820842,2.464,3318.0,3317.1,0.30750592]
[1722267821047,2.464,3318.0,3316.9,0.06028921]
[1722267821048,2.464,3318.0,3317.0,3.01475]
[1722267821248,2.464,3318.0,3317.1,3.07495775]
[1722267821545,3.0,3318.3,3317.2,3.01458]
[1722267821750,9.6756,3318.4,3317.3,3.07477372]
[1722267821981,2.3656,3318.4,3317.4,3.01439]
[1722267822191,2.3656,3318.4,3317.5,0.301439]
[1722267822546,7.31,3318.8,3317.6,3.01414]
[1722267822750,0.29499435,3319.4,3317.7,0.06027245]
[1722267822751,5.95762,3319.4,3317.7,0.06027245]
[1722267823089,5.95762,3319.4,3317.7,3.01408]
[1722267823090,5.37829,3319.3,3317.7,3.01408]
[1722267823246,4.327865,3319.2,3317.8,0.301408]
[1722267824069,1.315095,3319.2,3317.8,0.301408]
[1722267824497,4.315095,3319.2,3317.8,3.315448]
[1722267825191,4.315095,3319.2,3317.8,0.301408]
[1722267825406,4.315095,3319.2,3317.2,2.2502]
[1722267825407,1.815,3319.1,3317.2,5.26475]
[1722267825585,3.01338,3318.6,3317.0,3.01471]
[1722267825749,4.82818,3318.8,3317.2,3.01458]
[1722267826089,3.482818,3318.7,3317.2,3.01455]
[1722267826385,0.482818,3318.7,3317.2,3.01455]
[1722267826786,3.01338,3318.6,3317.1,0.451471]
[1722267826944,3.01338,3318.6,3316.8,5.566607]
[1722267826945,6.3630298,3318.5,3317.2,0.3466161]
[1722267827149,6.3630298,3318.5,3316.9,3.01481]
[1722267827386,3.0135,3318.4,3316.9,3.01481]
[1722267827698,2.2718,3318.2,3316.8,2.551697]
[1722267828203,2.2718,3318.2,3316.8,5.566637]
[1722267828365,2.2718,3318.2,3316.9,0.8581607]
[1722267828562,3.01387,3318.0,3316.9,0.8581607]
[1722267828821,3.0,3317.9,3316.4,2.4674]
[1722267829101,3.0,3317.9,3316.7,3.01503]
[1722267829396,5.2718,3318.2,3316.7,6.03]
[1722267829598,1.13968,3318.1,3316.8,0.66329224]
[1722267829763,4.13968,3318.1,3316.8,0.603]
[1722267830110,4.13968,3318.1,3316.7,3.01497]
[1722267830397,4.13968,3318.1,3316.8,3.07520221]
[1722267831459,4.13968,3318.1,3316.8,0.06029221]
[1722267831886,4.13968,3318.1,3316.8,3.01489]
[1722267832194,4.13968,3318.1,3316.6,3.01508]
[1722267832375,4.13968,3318.1,3316.7,3.618056]
[1722267832575,4.13968,3318.1,3316.7,3.618006]
[1722267832761,4.13968,3318.1,3316.7,3.01498]
[1722267833162,4.13968,3318.1,3316.7,6.02995]
[1722267833349,4.13968,3318.1,3316.7,3.01497]
[1722267833782,4.13968,3318.1,3316.7,3.07525914]
[1722267833952,4.13968,3318.1,3316.6,3.01512]
[1722267834278,4.13968,3318.1,3316.7,0.60303]
[1722267834479,5.95468,3318.1,3316.7,0.60303]
[1722267834795,5.95468,3318.1,3316.4,5.48271]
[1722267834796,3.01401,3317.9,3316.4,5.48271]
[1722267834980,3.01401,3317.9,3316.4,2.4674]
[1722267835179,3.0,3317.8,3316.4,5.48266]
[1722267835403,8.96849,3318.1,3316.4,2.4674]
[1722267835556,8.96849,3318.1,3316.5,0.548275]
[1722267835557,3.01402,3317.9,3316.5,0.548275]
[1722267835876,3.0,3317.8,3316.5,0.548275]
[1722267836494,3.0,3318.0,3316.5,0.548275]
[1722267836796,3.0,3318.0,3316.6,3.01508]
[1722267837089,4.13968,3318.1,3316.7,0.3563355]
[1722267837477,4.13968,3318.1,3316.7,3.3713255]
[1722267837691,4.13968,3318.1,3316.8,0.06028984]
[1722267837991,4.13968,3318.1,3316.8,3.07518984]
[1722267838168,4.13968,3318.1,3316.9,3.01485]
[1722267838369,3.0,3318.1,3317.0,3.38252322]
[1722267838679,3.0,3318.1,3317.0,0.30751398]
[1722267838879,2.2718,3318.2,3316.8,3.01494]
[1722267838880,5.2718,3318.2,3316.8,3.01494]
[1722267840064,5.2718,3318.2,3316.9,3.01485]
[1722267840381,5.2718,3318.2,3317.0,0.06028925]
[1722267840699,8.2855,3318.2,3316.7,3.01497]
[1722267840902,3.01393,3318.0,3316.8,0.301497]
[1722267841061,1.86091,3318.1,3316.7,3.01498]
[1722267841264,1.86091,3318.1,3316.6,3.01512]
[1722267841265,4.86091,3318.1,3316.6,3.01512]
[1722267841599,7.87469,3318.1,3316.6,3.0151]
[1722267841768,4.86091,3318.1,3316.5,2.048275]
[1722267841968,4.86091,3318.1,3316.4,2.4674]
[1722267841969,3.01409,3317.8,3316.4,2.4674]
[1722267842496,3.0,3317.7,3316.4,2.4674]
[1722267843075,7.82896,3317.9,3316.4,5.4827]
[1722267843506,3.01405,3317.8,3316.4,2.4674]
[1722267843667,4.2723021,3317.8,3316.4,3.015681]
[1722267843865,3.01423,3317.6,3316.4,2.4674]
[1722267844113,3.0,3317.5,3316.4,2.4674]
[1722267844407,3.01437,3317.5,3316.0,5.40811]
[1722267844701,3.3,3317.4,3316.1,0.540811]
[1722267844869,3.01454,3317.3,3316.0,2.3925]
[1722267845064,6.245,3317.4,3316.0,2.3925]
[1722267845065,3.0,3317.2,3316.0,2.3925]
[1722267845287,6.245,3317.4,3316.0,2.3925]
[1722267845513,3.3,3317.4,3316.1,0.540826]
[1722267845722,3.3,3317.4,3316.1,3.61672172]
[1722267845723,0.3,3317.4,3316.1,3.61672172]
[1722267846010,3.01459,3317.2,3316.1,0.540826]
[1722267846208,3.01459,3317.2,3315.4,4.07009134]
[1722267846209,3.0,3317.1,3315.6,2.3925]
[1722267846419,3.0,3317.1,3315.7,3.07622026]
[1722267846573,4.815,3317.3,3315.9,3.01571]
[1722267846767,4.815,3317.3,3316.0,0.30760202]
[1722267846768,0.506,3317.2,3316.0,0.30760202]
[1722267847369,3.52059,3317.2,3316.0,0.30760202]
[1722267847569,6.01469,3317.1,3315.6,2.3925]
[1722267847787,3.01487,3316.9,3315.6,2.3925]
[1722267848012,3.0,3317.0,3315.6,2.3925]
[1722267848535,6.01477,3317.0,3315.6,2.3925]
[1722267848715,3.0,3317.0,3315.6,2.3925]
[1722267848943,2.6407,3316.9,3315.7,0.540863]
[1722267849106,3.0,3316.8,3315.7,0.540863]
[1722267849424,2.3407,3316.9,3315.7,0.540863]
[1722267849832,5.3407,3316.9,3315.7,0.540863]
[1722267850200,5.3407,3316.9,3315.6,2.3925]
[1722267850527,8.35557,3316.9,3315.6,2.3925]
[1722267850711,5.3407,3316.9,3315.6,2.3925]
[1722267851034,8.3556,3316.9,3315.6,2.3925]
[1722267851596,3.01513,3316.6,3315.6,2.3925]
[1722267851809,3.301513,3316.5,3315.6,2.3925]
[1722267852196,3.301513,3316.5,3315.2,5.3196]
[1722267852531,3.301513,3316.5,3315.2,2.2896]
[1722267852714,6.316763,3316.5,3315.2,2.2896]
[1722267853543,3.301513,3316.5,3315.2,2.2896]
[1722267853836,3.0,3316.4,3315.3,0.22896]
[1722267854004,3.0,3316.7,3315.3,0.22896]
[1722267854204,3.0,3316.7,3315.4,0.06031651]
[1722267854930,3.0,3316.7,3315.4,3.07646651]
[1722267855104,3.0,3316.7,3315.4,0.06031651]
[1722267855325,1.332497,3316.6,3315.5,0.33055865]
[1722267855530,4.332497,3316.6,3315.5,0.33055865]
[1722267855954,1.332497,3316.6,3315.6,3.01598]
[1722267856127,3.0,3316.7,3315.5,0.39087403]
[1722267857452,3.0,3316.7,3315.7,3.01595]
[1722267857624,3.0,3316.7,3315.5,0.39087403]
[1722267857625,3.0,3316.7,3315.8,0.06031034]
[1722267857958,3.0,3316.7,3315.5,0.33055865]
[1722267858156,3.0,3316.7,3315.6,0.33467386]
[1722267858365,3.0,3316.7,3315.6,3.35065386]
[1722267858514,3.0,3316.7,3315.7,0.06031048]
[1722267858918,3.0,3316.7,3315.6,0.33467386]
[1722267859456,3.0,3316.7,3315.3,3.24525]
[1722267860359,3.0,3316.7,3315.5,3.01612]
[1722267861245,3.0,3316.7,3315.4,3.07645532]
[1722267861468,3.0,3316.7,3315.3,3.24522]
[1722267861642,3.0,3316.7,3315.5,3.01613]
[1722267861843,3.0,3316.7,3315.7,3.0159]
[1722267862046,3.0,3316.7,3315.8,3.0761104]
[1722267862255,3.0,3316.7,3315.8,3.0761004]
[1722267863027,3.0,3316.7,3315.6,0.301613]
[1722267863457,3.0,3316.7,3315.3,3.2452]
[1722267864064,3.0,3316.7,3315.4,3.0162]
[1722267864583,3.0,3316.7,3315.6,3.01602]
[1722267864923,3.0,3316.7,3315.6,3.07633524]
[1722267865121,3.0,3316.7,3315.8,3.01585]
[1722267865325,3.0,3316.7,3315.9,0.301585]
[1722267865567,3.0,3316.7,3315.8,0.06031015]
[1722267865751,3.0,3316.7,3315.5,3.01613]
[1722267866071,3.0,3316.7,3315.5,3.01611]
[1722267866269,3.0,3316.7,3315.4,3.01621]
[1722267866441,3.0,3316.7,3315.3,3.24527]
[1722267866644,3.0,3316.7,3315.4,0.553487]
[1722267866965,3.0,3316.7,3315.5,3.01613]
[1722267867139,3.0,3316.7,3315.5,3.07639363]
[1722267867340,3.0,3316.7,3315.6,3.01604]
[1722267867573,3.0,3316.7,3315.7,3.01595]
[1722267867729,3.0,3316.7,3315.8,0.301595]
[1722267868134,3.0,3316.7,3315.9,3.01571]
[1722267868379,2.2837,3317.3,3316.3,3.01533]
[1722267868528,7.31,3317.4,3316.5,3.01517]
[1722267868728,7.31,3317.4,3316.6,0.30754672]
[1722267868933,7.31,3317.4,3316.7,0.06029721]
[1722267869528,7.31,3317.4,3316.7,3.07528721]
[1722267869881,7.31,3317.4,3316.6,5.70582672]
[1722267869882,7.31,3317.4,3316.8,3.07523193]
[1722267870073,7.31,3317.4,3316.9,0.30752319]
[1722267870377,7.31,3317.4,3316.9,3.01485]
[1722267870533,7.31,3317.4,3316.8,0.06029193]
[1722267870870,7.31,3317.8,3317.0,3.01475]
[1722267871077,10.13641,3318.5,3317.0,3.01476]
[1722267871078,7.31,3318.1,3317.0,3.01476]
[1722267871382,8.041,3318.1,3317.0,0.30750519]
[1722267871584,8.041,3318.1,3317.0,0.36779348]
[1722267872380,3.0,3318.0,3317.0,0.06028829]
[1722267872686,3.0,3318.0,3316.9,3.07513829]
[1722267873279,3.0,3318.0,3317.0,3.01477]
[1722267873435,3.0,3318.0,3317.0,0.06028647]
[1722267875266,3.0,3318.0,3317.0,3.07498647]
[1722267875450,3.0,3318.0,3317.1,0.60897665]
[1722267877146,7.31,3318.1,3317.3,3.01444]
[1722267877368,7.31,3318.1,3317.3,3.07472101]
[1722267877669,7.31,3318.1,3317.5,3.0143]
[1722267878065,7.31,3318.1,3317.5,3.01425]
[1722267878244,7.31,3318.1,3317.6,3.315635]
[1722267878445,2.944,3318.8,3317.8,3.01396]
[1722267879002,2.944,3318.8,3317.8,3.01403]
[1722267879338,2.944,3318.8,3317.6,0.301425]
[1722267879536,2.944,3318.8,3317.6,3.315595]
[1722267879841,4.27221,3318.7,3317.6,3.315595]
[1722267880230,4.27221,3318.7,3317.7,3.01412]
[1722267880889,4.27221,3318.7,3317.6,0.301425]
[1722267881053,7.28545,3318.7,3317.2,3.01453]
[1722267881376,1.204445,3318.6,3317.2,3.90531967]
[1722267881535,1.204445,3318.6,3317.3,3.01448]
[1722267881737,1.204445,3318.6,3317.2,3.90537967]
[1722267881975,2.2858,3318.3,3317.1,3.01466]
[1722267882274,2.2858,3318.3,3317.0,2.2698]
[1722267882275,5.2858,3318.3,3317.0,2.2698]
[1722267882576,5.2858,3318.3,3317.4,3.01434]
[1722267882875,5.2858,3318.3,3317.0,2.2698]
[1722267882876,3.0,3318.2,3317.5,3.01425]
[1722267883045,2.2858,3318.3,3317.5,3.315665]
[1722267883374,3.0,3318.5,3317.5,3.315665]
[1722267883677,1.204445,3318.6,3317.7,3.01412]
[1722267883678,4.204445,3318.6,3317.7,3.01412]
[1722267883987,4.204445,3318.6,3317.5,3.315665]
[1722267884277,4.204445,3318.6,3317.6,3.01422]
[1722267884474,0.7762455,3318.5,3317.6,3.01422]
[1722267884662,0.7762455,3318.5,3317.7,3.01412]
[1722267884866,0.7762455,3318.5,3317.6,3.01416]
[1722267885041,3.0,3318.6,3317.7,3.01413]
[1722267885375,2.2858,3318.7,3317.8,0.060274]
[1722267885735,2.2858,3318.7,3317.9,3.01388]
[1722267885934,7.31,3318.9,3318.0,3.07408089]
[1722267886384,7.31,3318.9,3318.0,0.36767898]
[1722267886541,7.31,3318.9,3318.0,0.06027089]
[1722267887145,3.0,3318.8,3318.0,0.06027089]
[1722267887574,3.0,3318.8,3318.0,3.07410089]
[1722267887752,3.0,3318.8,3318.0,3.01383]
[1722267888089,3.0,3318.8,3317.9,3.01394]
[1722267888255,3.0,3318.8,3318.0,3.37547444]
[1722267889037,3.0,3318.8,3318.0,0.36166444]
[1722267889669,3.0,3318.8,3318.0,0.301394]
[1722267889868,3.0,3318.8,3317.7,5.3978]
[1722267890248,3.0,3318.8,3317.7,5.39776]
[1722267890587,3.0,3318.8,3317.6,3.01422]